lending/lending_fUSD_20250411
["ID","MTS","AMOUNT","RATE_DAILY","PERIOD"]
[357740207,1744409437895,-166.66666666,0.00036904,30]
[357740208,1744409437908,-166.84,0.00037,2]
[357740209,1744409437918,-166.84,0.00037,2]
[357740210,1744409437927,-700.0,0.00037,2]
[357740211,1744409437937,-520.31,0.00037,2]
[357740212,1744409437947,-166.66666666,0.00037205,30]
[357740213,1744409437956,-704.3,0.00037339,2]
[357740214,1744409437966,-166.84,0.000375,2]
[357740215,1744409437978,-166.66666666,0.00037534,30]
[357740216,1744409437988,-166.66666666,0.00037863,30]
[357740217,1744409437997,-302.40650612,0.00038,120]
[357740218,1744409438007,-259.80498851,0.00038,120]
[357740219,1744409438017,-300.0,0.00038,2]
[357740220,1744409438030,-300.0,0.00038,2]
[357740221,1744409438040,-351.3148,0.00038092,2]
[357740222,1744409438050,-166.66666666,0.00038192,30]
[357740223,1744409438059,-150.0,0.0003838,2]
[357740224,1744409438069,-300.0,0.0003838,2]
[357740225,1744409438078,-2751.0,0.0003844,120]
[357740226,1744409438087,-1852.42,0.00038459,2]
[357740227,1744409438097,-182.08,0.000386,30]
[357740228,1744409438106,-175.1448,0.00038754,2]
[357740229,1744409438119,-300.0,0.0003876,2]
[357740230,1744409438130,-161.96,0.00038832,2]
[357740231,1744409438140,-208.54,0.00038832,2]
[357740232,1744409438149,-6106.9982,0.00038839,2]
[357740233,1744409438159,-23900.0,0.00038939,2]
[357740234,1744409438168,-1000.0,0.00038954,2]
[357740235,1744409438177,-750.0,0.00039,2]
[357740236,1744409438187,-206.06,0.00039074,2]
[357740237,1744409438196,-1751.88,0.00039116,2]
[357740239,1744409438206,-3661.51,0.00039132,2]
[357740241,1744409438215,-300.0,0.0003914,2]
[357740243,1744409438225,-200.0,0.00039158,2]
[357740245,1744409438235,-166.84,0.000392,2]
[357740247,1744409438244,-200.0,0.0003948,2]
[357740249,1744409438254,-300.0,0.0003952,2]
[357740250,1744409438264,-5572.03,0.00039545,2]
[357740252,1744409438273,-233.93,0.00039568,2]
[357740254,1744409438283,-704.3,0.00039603,2]
[357740256,1744409438292,-1253.86735631,0.0003965,120]
[357740258,1744409438302,-167.09,0.00039828,120]
[357740259,1744409438311,-450.0,0.000399,4]
[357740261,1744409438321,-150.0,0.0004,120]
[357740263,1744409438331,-1000.0,0.0004,30]
[357740265,1744409438341,-302.40650612,0.0004,120]
[357740267,1744409438351,-259.80498851,0.0004,120]
[357740269,1744409438360,-510.584675,0.0004,10]
[357740271,1744409438370,-250.0,0.00040239,2]
[357740273,1744409438380,-450.0,0.0004028,4]
[357740275,1744409438389,-1036.36276299,0.00040333,2]
[357740277,1744409438399,-166.67,0.00040511,2]
[357740279,1744409438408,-191.93007445,0.00040534,28]
[357740281,1744409438418,-989.4,0.00040634,2]
[357740283,1744409438427,-500.0,0.00040634,2]
[357740285,1744409438437,-4264.84,0.00040645,2]
[357740286,1744409438446,-6270.4,0.00040655,2]
[357740288,1744409438455,-450.0,0.0004066,4]
[357740290,1744409438465,-589.47,0.00040676,2]
[357740292,1744409438474,-316.01,0.00040803,2]
[357740294,1744409438484,-152.0,0.00040804,3]
[357740296,1744409438495,-200.0,0.00040866,7]
[357740298,1744409438505,-2800.0,0.00041,120]
[357740300,1744409438514,-2800.0,0.00041,120]
[357740301,1744409438524,-2800.0,0.00041,120]
[357740303,1744409438534,-450.0,0.0004104,4]
[357740305,1744409438544,-150.0,0.00041096,2]
[357740307,1744409438554,-387.80148173,0.00041096,2]
[357740309,1744409438564,-4000.0,0.00041096,30]
[357740311,1744409438573,-2205.28600961,0.0004113,4]
[357740313,1744409438586,-1133.36776499,0.0004114,5]
[357740315,1744409438596,-1130.80463204,0.0004114,5]
[357740317,1744409438605,-8821.14403844,0.00041161,4]
[357740319,1744409438615,-8951.29589632,0.00041344,15]
[357740321,1744409438625,-450.0,0.0004142,4]
[357740323,1744409438636,-152.0,0.00041444,4]
[357740325,1744409438645,-1236.569781,0.0004145,48]
[357740327,1744409438655,-150.041206,0.00041498,120]
[357740329,1744409438664,-1012.22,0.000416,49]
[357740330,1744409438674,-8951.29589628,0.00041647,15]
[357740331,1744409438684,-2179.22,0.000417,31]
[357740332,1744409438694,-2179.22,0.000417,31]
[357740333,1744409438703,-2179.22,0.000417,31]
[357740334,1744409438712,-2179.22,0.000417,31]
[357740335,1744409438722,-2179.22,0.000417,31]
[357740336,1744409438731,-2179.22,0.000417,31]
[357740337,1744409438741,-2179.22,0.000417,31]
[357740338,1744409438751,-2179.22,0.000417,31]
[357740339,1744409438760,-2179.22,0.000417,31]
[357740340,1744409438770,-2179.22,0.000417,31]
[357740341,1744409438779,-2179.22,0.000417,31]
[357740342,1744409438789,-2179.22,0.000417,31]
[357740343,1744409438800,-150.0,0.00041706,2]
[357740344,1744409438810,-150.0,0.00041714,2]
[357740345,1744409438820,-150.0,0.00041727,2]
[357740346,1744409438830,-6615.85802883,0.00041731,4]
[357740347,1744409438839,-150.0,0.00041738,2]
[357740348,1744409438848,-8821.14403844,0.00041741,4]
[357740349,1744409438858,-1012.22,0.0004175,50]
[357740350,1744409438868,-150.0,0.00041752,2]
[357740351,1744409438878,-150.0,0.00041758,2]
[357740352,1744409438887,-339.480046,0.00041759,2]
[357740353,1744409438900,-150.0,0.00041772,2]
[357740354,1744409439086,-4410.57201922,0.0004178,4]
[357740355,1744409439101,-150.0,0.00041783,2]
[357740356,1744409439110,-11026.430048,0.0004179,4]
[357740357,1744409439119,-150.041206,0.00041798,120]
[357740358,1744409439129,-150.0,0.00041801,2]
[357740359,1744409439138,-150.0,0.00041805,2]
[357740360,1744409439148,-150.0,0.00041806,2]
[357740361,1744409439157,-150.0,0.00041822,2]
[357740362,1744409439166,-150.0,0.00041822,2]
[357740363,1744409439175,-150.0,0.00041831,2]
[357740364,1744409439184,-150.0,0.00041835,2]
[357740365,1744409439193,-150.0,0.0004184,2]
[357740366,1744409439203,-150.0,0.00041844,2]
[357740367,1744409439212,-24258.1461057,0.0004185,4]
[357740368,1744409439221,-150.0,0.00041853,2]
[357740369,1744409439231,-150.0,0.00041858,2]
[357740370,1744409439240,-150.0,0.0004186,2]
[357740371,1744409439250,-8821.14403844,0.0004186,4]
[357740372,1744409439259,-4264.84,0.0004186,2]
[357740373,1744409439269,-150.0,0.00041862,2]
[357740374,1744409439278,-704.3,0.00041867,2]
[357740375,1744409439288,-109582.1336,0.0004187,2]
[357740376,1744409439297,-155.31285148,0.0004188,5]
[357740377,1744409439307,-150.0,0.00041898,2]
[357740378,1744409439316,-1012.22,0.000419,52]
[357740379,1744409439326,-150.0,0.00041908,2]
[357740380,1744409439336,-249.93328278,0.0004191,2]
[357740381,1744409439345,-150.0,0.00041915,2]
[357740382,1744409439354,-150.0,0.00041917,2]
[357740383,1744409439364,-150.0,0.0004193,2]
[357740384,1744409439373,-150.0,0.00041931,2]
[357740385,1744409439383,-150.0,0.00041934,2]
[357740386,1744409439392,-425.0,0.00041945,120]
[357740387,1744409439402,-150.0,0.00041946,2]
[357740388,1744409439411,-150.0,0.00041949,2]
[357740389,1744409439421,-8951.29589628,0.0004195,15]
[357740390,1744409439431,-153.16,0.00041961,2]
[357740391,1744409439441,-150.0,0.00041963,2]
[357740392,1744409439450,-150.0,0.00041964,2]
[357740393,1744409439460,-581.0,0.0004197,120]
[357740394,1744409439469,-237.8743967,0.0004197,2]
[357740395,1744409439478,-808.3904504,0.0004197,2]
[357740396,1744409439488,-2164.0464357,0.0004197,2]
[357740397,1744409439497,-39292.4848487,0.0004197,2]
[357740398,1744409439507,-19579.8545089,0.0004197,2]
[357740399,1744409439516,-3058.3331809,0.0004197,2]
[357740400,1744409439525,-3590.4748174,0.0004197,2]
[357740401,1744409439535,-1000.0,0.0004197,10]
[357740402,1744409439544,-1030.60804859,0.0004197,10]
[357740403,1744409439554,-153.16,0.0004197,2]
[357740404,1744409439563,-153.16,0.0004197,2]
[357740405,1744409439572,-290.1979156,0.00041971,2]
[357740406,1744409439581,-944.3470261,0.00041971,2]
[357740407,1744409439591,-2510.4393068,0.00041971,2]
[357740408,1744409439600,-50043.988618,0.00041971,2]
[357740409,1744409439609,-24937.4408354,0.00041971,2]
[357740410,1744409439618,-3895.1771944,0.00041971,2]
[357740411,1744409439627,-4168.0116528,0.00041971,2]
[357740412,1744409439637,-503.91427093,0.00041973,10]
[357740413,1744409439647,-150.0,0.00041977,2]
[357740414,1744409439656,-466.0,0.00041979,7]
[357740415,1744409439665,-300.0,0.00041979,30]
[357740416,1744409439675,-500.0,0.00041979,10]
[357740417,1744409439684,-500.0,0.00041979,10]
[357740418,1744409439693,-1431375.97813211,0.0004198,30]
[357740419,1744409439707,-41128.00180814,0.0004198,30]
[357740420,1744409439718,-7918.61196079,0.0004198,30]
[357740421,1744409439729,-5488.99948711,0.0004198,30]
[357740422,1744409439738,-150.5,0.0004198,120]
[357740423,1744409439747,-581.0,0.0004198,120]
[357740424,1744409439757,-200.0,0.0004198,7]
[357740425,1744409439767,-500.0,0.0004198,2]
[357740426,1744409439776,-500.0,0.0004198,120]
[357740428,1744409439785,-500.0,0.0004198,120]
[357740429,1744409439794,-500.0,0.0004198,120]
[357740430,1744409439803,-500.0,0.0004198,120]
[357740431,1744409439812,-500.0,0.0004198,120]
[357740432,1744409439821,-500.0,0.0004198,120]
[357740433,1744409439830,-500.0,0.0004198,120]
[357740434,1744409439839,-500.0,0.0004198,120]
[357740435,1744409439848,-500.0,0.0004198,120]
[357740436,1744409439858,-500.0,0.0004198,120]
[357740437,1744409439867,-500.0,0.0004198,120]
[357740438,1744409439877,-500.0,0.0004198,120]
[357740439,1744409439886,-500.0,0.0004198,120]
[357740440,1744409439895,-500.0,0.0004198,120]
[357740441,1744409439907,-500.0,0.0004198,120]
[357740442,1744409439916,-500.0,0.0004198,120]
[357740443,1744409439925,-500.0,0.0004198,120]
[357740444,1744409439934,-500.0,0.0004198,120]
[357740445,1744409439945,-500.0,0.0004198,120]
[357740446,1744409439954,-500.0,0.0004198,120]
[357740447,1744409439963,-500.0,0.0004198,120]
[357740448,1744409439973,-500.0,0.0004198,120]
[357740449,1744409439984,-500.0,0.0004198,120]
[357740450,1744409439993,-500.0,0.0004198,120]
[357740451,1744409440002,-500.0,0.0004198,120]
[357740452,1744409440012,-500.0,0.0004198,120]
[357740453,1744409440021,-500.0,0.0004198,120]
[357740454,1744409440031,-500.0,0.0004198,120]
[357740455,1744409440040,-500.0,0.0004198,120]
[357740456,1744409440049,-500.0,0.0004198,120]
[357740457,1744409440058,-500.0,0.0004198,120]
[357740458,1744409440067,-500.0,0.0004198,120]
[357740459,1744409440076,-500.0,0.0004198,120]
[357740460,1744409440086,-500.0,0.0004198,120]
[357740461,1744409440096,-500.0,0.0004198,120]
[357740462,1744409440105,-500.0,0.0004198,120]
[357740463,1744409440114,-500.0,0.0004198,120]
[357740464,1744409440123,-500.0,0.0004198,120]
[357740465,1744409440132,-500.0,0.0004198,120]
[357740466,1744409440141,-500.0,0.0004198,120]
[357740467,1744409440150,-500.0,0.0004198,120]
[357740468,1744409440159,-500.0,0.0004198,120]
[357740469,1744409440168,-500.0,0.0004198,120]
[357740470,1744409440177,-500.0,0.0004198,120]
[357740471,1744409440186,-500.0,0.0004198,120]
[357740472,1744409440194,-500.0,0.0004198,120]
[357740473,1744409440203,-500.0,0.0004198,120]
[357740474,1744409440212,-500.0,0.0004198,120]
[357740475,1744409440221,-500.0,0.0004198,120]
[357740476,1744409440229,-500.0,0.0004198,120]
[357740477,1744409440239,-500.0,0.0004198,120]
[357740478,1744409440248,-500.0,0.0004198,120]
[357740479,1744409440257,-500.0,0.0004198,120]
[357740480,1744409440267,-500.0,0.0004198,120]
[357740481,1744409440276,-500.0,0.0004198,120]
[357740482,1744409440285,-500.0,0.0004198,120]
[357740483,1744409440294,-500.0,0.0004198,120]
[357740484,1744409440303,-500.0,0.0004198,120]
[357740485,1744409440312,-500.0,0.0004198,120]
[357740486,1744409440323,-741.0,0.0004198,120]
[357740487,1744409440332,-500.0,0.0004198,120]
[357740488,1744409440341,-500.0,0.0004198,120]
[357740489,1744409440351,-500.0,0.0004198,120]
[357740490,1744409440360,-500.0,0.0004198,120]
[357740491,1744409440370,-500.0,0.0004198,120]
[357740492,1744409440380,-500.0,0.0004198,120]
[357740493,1744409440390,-500.0,0.0004198,120]
[357740494,1744409440399,-500.0,0.0004198,120]
[357740495,1744409440409,-500.0,0.0004198,120]
[357740496,1744409440419,-500.0,0.0004198,120]
[357740497,1744409440429,-500.0,0.0004198,120]
[357740498,1744409440438,-500.0,0.0004198,120]
[357740499,1744409440449,-500.0,0.0004198,120]
[357740500,1744409440458,-689.0,0.0004198,120]
[357740501,1744409440467,-500.0,0.0004198,120]
[357740502,1744409440477,-500.0,0.0004198,120]
[357740503,1744409440490,-500.0,0.0004198,120]
[357740504,1744409440499,-500.0,0.0004198,120]
[357740505,1744409440509,-412.33740208,0.0004198,120]
[357740506,1744409440522,-87.66259792,0.0004198,120]
[357740508,1744409440531,-500.0,0.0004198,120]
[357740510,1744409440540,-500.0,0.0004198,120]
[357740511,1744409440550,-500.0,0.0004198,120]
[357740512,1744409440559,-500.0,0.0004198,120]
[357740513,1744409440569,-500.0,0.0004198,120]
[357740514,1744409440578,-500.0,0.0004198,120]
[357740516,1744409440588,-500.0,0.0004198,120]
[357740517,1744409440597,-500.0,0.0004198,120]
[357740518,1744409440607,-500.0,0.0004198,120]
[357740519,1744409440616,-500.0,0.0004198,120]
[357740520,1744409440626,-500.0,0.0004198,120]
[357740521,1744409440635,-500.0,0.0004198,120]
[357740522,1744409440645,-500.0,0.0004198,120]
[357740523,1744409440655,-500.0,0.0004198,120]
[357740524,1744409440664,-500.0,0.0004198,120]
[357740525,1744409440674,-500.0,0.0004198,120]
[357740526,1744409440683,-500.0,0.0004198,120]
[357740527,1744409440692,-500.0,0.0004198,120]
[357740528,1744409440701,-500.0,0.0004198,120]
[357740529,1744409440711,-500.0,0.0004198,120]
[357740530,1744409440720,-500.0,0.0004198,120]
[357740531,1744409440730,-500.0,0.0004198,120]
[357740532,1744409440739,-500.0,0.0004198,120]
[357740533,1744409440749,-500.0,0.0004198,120]
[357740534,1744409440758,-500.0,0.0004198,120]
[357740535,1744409440768,-500.0,0.0004198,120]
[357740536,1744409440777,-500.0,0.0004198,120]
[357740537,1744409440787,-500.0,0.0004198,120]
[357740538,1744409440797,-500.0,0.0004198,120]
[357740539,1744409440807,-500.0,0.0004198,120]
[357740540,1744409440816,-500.0,0.0004198,120]
[357740541,1744409440826,-500.0,0.0004198,120]
[357740542,1744409440835,-500.0,0.0004198,120]
[357740543,1744409440844,-500.0,0.0004198,120]
[357740544,1744409440853,-500.0,0.0004198,120]
[357740545,1744409440863,-500.0,0.0004198,120]
[357740546,1744409440873,-500.0,0.0004198,120]
[357740547,1744409440883,-21.51121207,0.0004198,120]
[357740548,1744409440895,-478.48878793,0.0004198,120]
[357740549,1744409440908,-500.0,0.0004198,120]
[357740550,1744409440917,-93.86121207,0.0004198,120]
[357740551,1744409440928,-406.13878793,0.0004198,120]
[357740552,1744409440939,-500.0,0.0004198,120]
[357740553,1744409440949,-123.86121207,0.0004198,120]
[357740554,1744409440972,-376.13878793,0.0004198,120]
[357740555,1744409440984,-500.0,0.0004198,120]
[357740556,1744409440993,-500.0,0.0004198,120]
[357740557,1744409441003,-500.0,0.0004198,120]
[357740558,1744409441013,-500.0,0.0004198,120]
[357740559,1744409441022,-305.84663301,0.0004198,120]
[357740560,1744409441035,-194.15336699,0.0004198,120]
[357740561,1744409441048,-500.0,0.0004198,120]
[357740562,1744409441057,-33.97752297,0.0004198,120]
[357740563,1744409441069,-341.49861762,0.0004198,120]
[357740564,1744409441081,-124.52385941,0.0004198,120]
[357740565,1744409441091,-500.0,0.0004198,120]
[357740566,1744409441100,-500.0,0.0004198,120]
[357740567,1744409441110,-500.0,0.0004198,120]
[357740568,1744409441120,-500.0,0.0004198,120]
[357740569,1744409441130,-500.0,0.0004198,120]
[357740570,1744409441139,-500.0,0.0004198,120]
[357740571,1744409441148,-500.0,0.0004198,120]
[357740572,1744409441159,-500.0,0.0004198,120]
[357740573,1744409441168,-500.0,0.0004198,120]
[357740574,1744409441178,-500.0,0.0004198,120]
[357740575,1744409441188,-500.0,0.0004198,120]
[357740576,1744409441197,-500.0,0.0004198,120]
[357740577,1744409441207,-999.0,0.0004198,120]
[357740578,1744409441218,-500.0,0.0004198,120]
[357740579,1744409441227,-500.0,0.0004198,120]
[357740580,1744409441236,-500.0,0.0004198,120]
[357740581,1744409441246,-500.0,0.0004198,120]
[357740582,1744409441256,-500.0,0.0004198,120]
[357740583,1744409441265,-500.0,0.0004198,120]
[357740584,1744409441275,-500.0,0.0004198,120]
[357740585,1744409441284,-500.0,0.0004198,120]
[357740586,1744409441294,-500.0,0.0004198,120]
[357740587,1744409441304,-500.0,0.0004198,120]
[357740588,1744409441314,-500.0,0.0004198,120]
[357740589,1744409441323,-500.0,0.0004198,120]
[357740590,1744409441333,-500.0,0.0004198,120]
[357740591,1744409441343,-500.0,0.0004198,120]
[357740592,1744409441352,-500.0,0.0004198,120]
[357740593,1744409441362,-500.0,0.0004198,120]
[357740594,1744409441372,-500.0,0.0004198,120]
[357740595,1744409441382,-500.0,0.0004198,120]
[357740596,1744409441391,-500.0,0.0004198,120]
[357740597,1744409441401,-998.0,0.0004198,120]
[357740598,1744409441411,-500.0,0.0004198,120]
[357740599,1744409441420,-500.0,0.0004198,120]
[357740600,1744409441430,-500.0,0.0004198,120]
[357740601,1744409441440,-500.0,0.0004198,120]
[357740602,1744409441450,-500.0,0.0004198,120]
[357740603,1744409441460,-500.0,0.0004198,120]
[357740604,1744409441469,-500.0,0.0004198,120]
[357740605,1744409441482,-500.0,0.0004198,120]
[357740606,1744409441493,-500.0,0.0004198,120]
[357740607,1744409441502,-500.0,0.0004198,120]
[357740608,1744409441512,-500.0,0.0004198,120]
[357740609,1744409441522,-500.0,0.0004198,120]
[357740610,1744409441532,-500.0,0.0004198,120]
[357740611,1744409441542,-500.0,0.0004198,120]
[357740612,1744409441551,-500.0,0.0004198,120]
[357740613,1744409441561,-500.0,0.0004198,120]
[357740614,1744409441571,-500.0,0.0004198,120]
[357740615,1744409441580,-500.0,0.0004198,120]
[357740616,1744409441590,-500.0,0.0004198,120]
[357740617,1744409441601,-500.0,0.0004198,120]
[357740618,1744409441610,-500.0,0.0004198,120]
[357740619,1744409441620,-500.0,0.0004198,120]
[357740620,1744409441630,-500.0,0.0004198,120]
[357740621,1744409441639,-500.0,0.0004198,120]
[357740622,1744409441649,-500.0,0.0004198,120]
[357740623,1744409441658,-500.0,0.0004198,120]
[357740624,1744409441821,-500.0,0.0004198,120]
[357740625,1744409441831,-500.0,0.0004198,120]
[357740626,1744409441840,-500.0,0.0004198,120]
[357740627,1744409441850,-500.0,0.0004198,120]
[357740628,1744409441860,-500.0,0.0004198,120]
[357740629,1744409441870,-500.0,0.0004198,120]
[357740630,1744409441879,-500.0,0.0004198,120]
[357740631,1744409441889,-500.0,0.0004198,120]
[357740632,1744409441901,-500.0,0.0004198,120]
[357740633,1744409441911,-500.0,0.0004198,120]
[357740634,1744409441920,-500.0,0.0004198,120]
[357740635,1744409441930,-500.0,0.0004198,120]
[357740636,1744409441939,-500.0,0.0004198,120]
[357740637,1744409441949,-500.0,0.0004198,120]
[357740638,1744409441959,-500.0,0.0004198,120]
[357740639,1744409441968,-500.0,0.0004198,120]
[357740640,1744409441978,-500.0,0.0004198,120]
[357740641,1744409441988,-500.0,0.0004198,120]
[357740642,1744409441998,-500.0,0.0004198,120]
[357740643,1744409442007,-500.0,0.0004198,120]
[357740644,1744409442016,-500.0,0.0004198,120]
[357740645,1744409442025,-500.0,0.0004198,120]
[357740646,1744409442034,-500.0,0.0004198,120]
[357740647,1744409442044,-500.0,0.0004198,120]
[357740648,1744409442053,-500.0,0.0004198,120]
[357740649,1744409442063,-500.0,0.0004198,120]
[357740650,1744409442072,-500.0,0.0004198,120]
[357740651,1744409442082,-500.0,0.0004198,120]
[357740652,1744409442091,-500.0,0.0004198,120]
[357740653,1744409442100,-500.0,0.0004198,120]
[357740654,1744409442110,-500.0,0.0004198,120]
[357740655,1744409442119,-500.0,0.0004198,120]
[357740656,1744409442128,-500.0,0.0004198,120]
[357740657,1744409442137,-500.0,0.0004198,120]
[357740658,1744409442146,-500.0,0.0004198,120]
[357740659,1744409442155,-500.0,0.0004198,120]
[357740660,1744409442164,-500.0,0.0004198,120]
[357740661,1744409442173,-500.0,0.0004198,120]
[357740662,1744409442183,-500.0,0.0004198,120]
[357740663,1744409442192,-500.0,0.0004198,120]
[357740664,1744409442201,-500.0,0.0004198,120]
[357740665,1744409442210,-500.0,0.0004198,30]
[357740666,1744409442219,-518.5,0.0004198,30]
[357740667,1744409442229,-537.6845,0.0004198,30]
[357740668,1744409442238,-557.5788265,0.0004198,30]
[357740669,1744409442247,-578.20924308,0.0004198,30]
[357740670,1744409442257,-599.60298507,0.0004198,30]
[357740671,1744409442266,-621.78829552,0.0004198,30]
[357740672,1744409442275,-644.79446246,0.0004198,30]
[357740673,1744409442285,-668.65185757,0.0004198,30]
[357740674,1744409442294,-693.3919763,0.0004198,30]
[357740675,1744409442303,-719.04747942,0.0004198,30]
[357740676,1744409442313,-745.65223616,0.0004198,30]
[357740677,1744409442323,-773.2413689,0.0004198,30]
[357740678,1744409442332,-801.85129955,0.0004198,30]
[357740679,1744409442341,-150.0,0.00041985,120]
[357740680,1744409442351,-150.5,0.00041989,120]
[357740681,1744409442360,-269.87,0.0004199,120]
[357740682,1744409442369,-150.5,0.0004199,120]
[357740683,1744409442379,-581.0,0.0004199,120]
[357740684,1744409442389,-666.0,0.00041999,30]
[357740685,1744409442399,-500.0,0.00041999,10]
[357740686,1744409442409,-500.0,0.00041999,10]
[357740687,1744409442420,-500.0,0.00042,3]
[357740688,1744409442430,-200.0,0.00042,120]
[357740689,1744409442439,-22720.01161049,0.00042,5]
[357740690,1744409443080,-649.32987711,0.00042,5]
[357740707,1744409443447,-6076.4218801,0.00042,5]
[357740709,1744409443458,-1300.0,0.00042,5]
[357740714,1744409443760,-37.22059572,0.00042,5]
[357740716,1744409445877,-253.37492,0.0004116,5]
[357740717,1744409445890,-546.00323217,0.0004116,5]
[357740718,1744409445905,-224.11958956,0.0004116,5]
[357740719,1744409445915,-283.79041044,0.00041827,7]
[357740736,1744410268005,-158.1,0.00026849,2]
[357740737,1744410268027,-166.78,0.00027256,2]
[357740738,1744410268048,-300.0,0.00032877,30]
[357740739,1744410268069,-400.0,0.00033717,2]
[357740740,1744410268090,-791.0,0.00033719,2]
[357740741,1744410268111,-1278.0,0.00033719,2]
[357740742,1744410268131,-1235.547,0.00033719,2]
[357740743,1744410268151,-907.0,0.00033719,2]
[357740744,1744410268171,-544.0,0.00033719,2]
[357740745,1744410268193,-575.0,0.00033719,2]
[357740746,1744410268217,-4145.0,0.00033719,2]
[357740747,1744410268238,-152.0,0.00033719,2]
[357740748,1744410268259,-3961.0,0.00033719,2]
[357740749,1744410268281,-698.0,0.00033719,2]
[357740750,1744410268302,-496.12,0.00033719,2]
[357740751,1744410270708,-624.88,0.00033719,2]
[357740752,1744410308921,15182.667,0.0002,2]
[357740753,1744410338706,-181.77157691,0.00019,2]
[357740754,1744410395193,-160.16405441,0.00019,2]
[357740755,1744410410935,-202.4062069,0.00019,2]
[357740756,1744410410959,-97.5937931,0.00019999,2]
[357740757,1744410423184,-159.77945854,0.00019998,2]
[357740758,1744410517029,2511.20811978,0.000149,2]
[357740759,1744410552146,-300.0,0.000198,2]
[357740760,1744410552169,-184.71667573,0.000199,2]
[357740766,1744410592847,300.0,0.00015839,2]
[357740777,1744410631873,-1800.0,0.000198,2]
[357740778,1744410631882,-4.54410937,0.000199,2]
[357740779,1744410631892,-160.16405441,0.000199,2]
[357740780,1744410631902,-203.5843363,0.000199,2]
[357740781,1744410631911,-745.84799796,0.000199,2]
[357740782,1744410631921,-597.2793861,0.000199,2]
[357740783,1744410631930,-166.60539821,0.00019973,2]
[357740784,1744410631939,-150.0,0.00019999,2]
[357740785,1744410631948,-150.0,0.00019999,2]
[357740786,1744410631958,-150.0,0.00019999,2]
[357740787,1744410631967,-150.0,0.00019999,2]
[357740788,1744410631976,-150.0,0.00019999,2]
[357740789,1744410631985,-150.0,0.00019999,2]
[357740790,1744410631994,-150.0,0.00019999,2]
[357740791,1744410632004,-150.0,0.00019999,2]
[357740792,1744410632013,-150.0,0.00019999,2]
[357740793,1744410632023,-150.0,0.00019999,2]
[357740794,1744410632031,-150.0,0.00019999,2]
[357740795,1744410632041,-150.0,0.00019999,2]
[357740796,1744410632050,-150.0,0.00019999,2]
[357740797,1744410632059,-150.0,0.00019999,2]
[357740798,1744410632068,-402.4062069,0.00019999,2]
[357740799,1744410632078,-500.0,0.00019999,2]
[357740800,1744410632087,-500.0,0.00019999,2]
[357740801,1744410632096,-500.0,0.00019999,2]
[357740802,1744410632106,-500.0,0.00019999,2]
[357740804,1744410632115,-500.0,0.00019999,2]
[357740806,1744410632126,-190.08894377,0.00019999,2]
[357740807,1744410632135,-500.0,0.00019999,2]
[357740809,1744410632144,-226.90474604,0.00019999,2]
[357740810,1744410632154,-8456.48853063,0.0002,2]